[Event "Israel-ch Youth U8-18 2024"]
[Site "Kfar Saba"]
[Date "2024.04.18"]
[Round "5.8"]
[White "Sternfeld, Tomer"]
[Black "Zakin, Ilay"]
[Result "0-1"]
[ECO "A24"]
[WhiteElo "1866"]
[BlackElo "2178"]
[Annotator "TA"]
[PlyCount "118"]
[EventDate "2024.04.10"]
[EventType "swiss"]
[EventCountry "ISR"]
[SourceTitle "playchess.com"]
[Source "ChessBase"]
[SourceQuality "1"]
[TimeControl "5400+30"]

{[%evp 16,118,5,18,12,2,39,20,35,-22,-4,0,12,14,32,-113,-137,-139,-27,-96,-93,-174,-110,-385,-93,-117,-120,-117,-122,-125,-114,-147,0,0,25,27,14,18,58,53,44,16,16,20,16,9,14,15,15,19,4,11,15,6,14,-14,-12,-35,-39,-24,0,0,13,17,41,12,35,24,40,-31,24,24,26,10,50,55,58,49,49,31,33,22,22,-6,8,-72,-50,-67,-80,-79,-85,-569,-133,-144,-140,-199,-30,-567,-555,-735,-718,-706,-689,-29972,-5550]} 1. Nf3 {[%emt 0:00:04]} Nf6 {[%emt 0:00:07]} 2. g3 {[%emt 0:00:03]} g6 {[%emt 0:00:04]} 3. Bg2 {[%emt 0:00:03]} Bg7 {[%emt 0:00:05]} 4. O-O {[%emt 0:00:07]} O-O {[%emt 0:00:04]} 5. c4 {[%emt 0:00:11]} d6 {[%emt 0:00:07]} 6. Nc3 {[%emt 0:00:36]} a5 {[%emt 0:00:54]} 7. d3 {[%emt 0:01:04]} e5 {[%emt 0:00:35]} 8. Rb1 {[%emt 0:05:18]} c6 {[%emt 0:08:54]} 9. e4 {[%emt 0:04:38] A24: English Opening vs King's Indian: Lines without ...Nc6.} Na6 {[%emt 0:00:40]} 10. d4 {[%emt 0:13:04]} Qc7 $146 {[%emt 0:09:26]} ({Predecessor:} 10... exd4 11. Nxd4 Re8 12. h3 Nc5 13. Re1 a4 14. b3 axb3 15. axb3 h5 16. Bg5 Qb6 {0-1 Mani,B (1544)-Gochelashvili,D (2330) Bhubaneswar op-A 14th 2023 (4)}) 11. b3 {[%emt 0:11:05]} Re8 {[%emt 0:06:31]} 12. Ba3 {[%emt 0:08:10]} (12. h3 $14) 12... exd4 {[%emt 0:00:30]} 13. Nxd4 {[%emt 0:01:10]} Nc5 {[%emt 0:00:34]} 14. Re1 {[%emt 0:02:20]} Qb6 {[%emt 0:06:16]} 15. Nc2 {[%emt 0:20:02]} (15. h3 $14 {keeps the upper hand.}) 15... Ng4 $1 $17 {[%emt 0:22:08]} 16. Qxd6 {[%emt 0:04:57]} Ne6 {[%emt 0:03:42]} (16... Nd3 $1 $17 17. Re3 Nxe3 (17... Bxc3 18. Qxd3 Bb4 19. Re2 $11) (17... Ndxf2 18. Nd5 $15)) 17. c5 {[%emt 0:09:55]} (17. Qd2 $1 $11) 17... Qa7 $1 $17 {[%emt 0:01:30]} 18. Qd3 {[%emt 0:02:52]} (18. e5 $17 {might work better.} Rd8 19. Qe7) 18... Nxc5 {[%emt 0:03:13]} (18... Rd8 $1 $19 {[%cal Rd8d3]} 19. Qf3 Rd2 20. Qxg4 Bxc3 (20... Rxc2 $2 21. e5 $19)) 19. Qc4 $2 {[%emt 0:01:05][%mdl 8192]} (19. Bxc5 $17 Qxc5 20. Nd1) 19... Na6 $2 {[%emt 0:00:40]} (19... Nd3 $19 {has better winning chances.} 20. Qxd3 Qxf2+ (20... Nxf2 $2 21. Qe3 $18) 21. Kh1 Qxe1+ 22. Nxe1 Nf2+ 23. Kg1 Nxd3 24. Nxd3 Bxc3) 20. Nd1 $17 {[%emt 0:00:56]} Ne5 {[%emt 0:02:34]} 21. Qe2 {[%emt 0:00:21]} Bg4 {[%emt 0:06:18]} 22. Qe3 {[%emt 0:01:27]} Qxe3 {[%emt 0:00:33]} 23. Rxe3 {[%emt 0:01:51]} Bh6 {[%emt 0:00:26]} (23... Red8 $17 24. Nc3 b5) 24. f4 $11 {[%emt 0:00:52]} Nd7 {[%emt 0:04:15]} 25. Nf2 {[%emt 0:00:33]} Be6 {[%emt 0:00:39]} 26. Nd4 {[%emt 0:01:15]} Bg7 {[%emt 0:03:08]} 27. Nxe6 {[%emt 0:01:05]} fxe6 {[%emt 0:00:01]} 28. Rd1 {[%emt 0:01:18]} Ndc5 $1 {[%emt 0:01:04]} 29. e5 {[%emt 0:00:48]} Red8 {[%emt 0:01:06]} 30. Rc1 {[%emt 0:00:34]} Bf8 {[%emt 0:00:53]} 31. Rec3 {[%emt 0:01:42]} Ne4 {[%emt 0:02:41]} 32. Nxe4 {[%emt 0:00:36]} Bxa3 {[%emt 0:00:02]} 33. Rf1 {[%emt 0:00:40]} Bb4 {[%emt 0:00:51]} 34. Rc2 {[%emt 0:00:43]} Nc7 {[%emt 0:00:53]} 35. g4 {[%emt 0:01:34]} Nd5 {[%emt 0:00:46]} 36. Rf3 {[%emt 0:00:41]} Rf8 {[%emt 0:01:10]} 37. Rcf2 {[%emt 0:00:30]} Rae8 {[%emt 0:01:45]} 38. h4 {[%emt 0:00:58]} Re7 {[%emt 0:01:48]} (38... Be1 39. Rf1 Bb4 (39... Bxh4 $2 40. g5 $18) 40. h5 $14) 39. Bh3 {[%emt 0:00:55]} Ba3 {[%emt 0:02:26]} 40. Kg2 {[%emt 0:01:20]} Bc1 {[%emt 0:00:29]} 41. Kg3 {[%emt 0:00:17]} Be3 {[%emt 0:01:57] [#]} 42. Nf6+ {[%emt 0:01:55]} (42. Rf1 $1 $14 Kg7 43. Nf6) 42... Kg7 {[%emt 0:01:11]} (42... Nxf6 43. Rxe3 Nd5 44. Rd3 $14) ({Black should play} 42... Rxf6 $1 $15 43. exf6 (43. Rxe3 Rxf4 44. Rxf4 Nxe3 $17) 43... Bxf2+ 44. Rxf2 Nxf6) 43. Re2 $11 {[%emt 0:00:53]} (43. Nxd5 $2 Bxf2+ 44. Rxf2 cxd5 $19) 43... Bd4 {[%emt 0:00:43]} 44. Rd2 {[%emt 0:00:51]} c5 {[%emt 0:01:16]} 45. Nxd5 {[%emt 0:00:59]} exd5 {[%emt 0:00:01]} 46. Re2 {[%emt 0:00:01]} b5 {[%emt 0:04:50]} 47. a3 {[%emt 0:00:56]} b4 {[%emt 0:01:04]} 48. axb4 {[%emt 0:00:07]} axb4 {[%emt 0:03:40]} 49. e6 {[%emt 0:00:50]} Bc3 {[%emt 0:00:00]} 50. Rd3 {[%emt 0:00:31]} (50. g5 $11 {remains equal.}) 50... c4 $17 {[%emt 0:00:00]} 51. bxc4 {[%emt 0:00:26]} dxc4 {[%emt 0:00:00]} 52. Rd7 {[%emt 0:00:01]} Rfe8 {[%emt 0:00:00]} 53. Rc2 $2 {[%emt 0:00:51][%mdl 8192]} (53. f5 $17) 53... Kf8 $2 {[%emt 0:00:00]} (53... Be1+ $19 {is more deadly.} 54. Kf3 c3 (54... Bxh4 55. Rxc4 g5 56. Rxb4 $11)) 54. Bf1 $17 {[%emt 0:00:33] [#]} (54. g5 $2 Be1+ 55. Kh2 c3 (55... Bxh4 56. Rxc4 Be1 57. Rc5 $16)) 54... Rc8 $1 {[%emt 0:00:12]} ({Don't play} 54... Rxe6 $6 55. Bxc4 Re3+ 56. Kf2 Be1+ 57. Kg2 $11) 55. f5 {[%emt 0:00:39]} (55. Kf3 $17 {keeps fighting.}) 55... Be5+ $2 {[%emt 0:00:58]} (55... gxf5 $19 {White must now prevent ...Be5+.} 56. Kg2 Rxe6 (56... fxg4 57. Rf2+ Ke8 58. Rf4 $19) 57. Rxh7 Rec6 (57... fxg4 58. Rxc3 bxc3 59. Rh8+ Kg7 60. Rxc8 $16)) 56. Kf3 $2 {[%emt 0:00:12][%mdl 8192]} (56. Kg2 $1 $11 {and White stays safe.}) 56... c3 $19 {[%emt 0:00:35]} 57. Ba6 {[%emt 0:01:01]} b3 {[%emt 0:00:36]} 58. Rc1 {[%emt 0:00:05]} b2 {[%emt 0:00:16]} 59. Rb1 {[%emt 0:00:13]} c2 {[%emt 0:00:16]} 0-1

[Event "Israel-ch Youth U8-18 2024"]
[Site "Kfar Saba"]
[Date "2024.04.18"]
[Round "5.9"]
[White "Magen, Ofek"]
[Black "Taragan, Uri"]
[Result "0-1"]
[ECO "E11"]
[WhiteElo "1936"]
[BlackElo "1909"]
[Annotator "TA"]
[PlyCount "92"]
[EventDate "2024.04.10"]
[EventType "swiss"]
[EventCountry "ISR"]
[SourceTitle "playchess.com"]
[Source "ChessBase"]
[SourceQuality "1"]
[TimeControl "5400+30"]

{[%evp 16,92,16,10,16,0,0,2,26,0,16,-30,-31,-66,-41,-112,-93,-105,-98,-102,-93,-105,-88,-99,-95,-106,-97,-116,-118,-111,-114,-133,-158,-197,-191,-224,-197,-197,-199,-220,-203,-205,-176,-166,-156,-170,-167,-321,-314,-362,-318,-438,-436,-434,-437,-595,-593,-1020,-993,-1016,-1011,-982,-954,-947,-917,-1268,-1198,-1114,-948,-29986,-29987,-29987,-29988,-29988,-29989,-29988,-29989,-29990,-29991]} 1. d4 {[%emt 0:00:13]} Nf6 {[%emt 0:00:16]} 2. c4 {[%emt 0:00:02]} e6 {[%emt 0:00:04]} 3. Nf3 {[%emt 0:00:04]} Bb4+ {[%emt 0:00:09]} 4. Bd2 {[%emt 0:00:55]} Qe7 {[%emt 0:01:23]} 5. g3 {[%emt 0:04:20]} O-O {[%emt 0:08:30]} 6. Bg2 {[%emt 0:00:20]} Bxd2+ {[%emt 0:00:48]} 7. Nbxd2 {[%emt 0:00:17]} d6 {[%emt 0:00:10]} 8. O-O {[%emt 0:00:14]} e5 {[%emt 0:02:04]} 9. e3 {[%emt 0:00:33]} a5 {[%emt 0:07:04]} 10. Rc1 {[%emt 0:01:07]} Nc6 {[%emt 0:09:50]} 11. a3 {[%emt 0:02:00]} Bd7 {[%emt 0:08:53] The position is equal.} 12. Qc2 {[%emt 0:04:09]} a4 {[%emt 0:06:26]} 13. c5 {[%emt 0:24:31]} (13. Nb1 {might be stronger.}) 13... e4 $1 $11 {[%emt 0:10:09]} 14. Ne1 {[%emt 0:06:59]} d5 {[%emt 0:01:36]} 15. b4 {[%emt 0:04:37] Against Na5} (15. Qc3 $15) 15... Na7 {[%emt 0:09:28]} 16. Kh1 {[%emt 0:06:51]} Bb5 {[%emt 0:00:16]} 17. Rg1 {[%emt 0:00:15]} Ng4 {[%emt 0:00:32][%cal Rg4f2] [#]} 18. Nf1 {[%emt 0:01:36]} Qf6 {[%emt 0:12:17] Black is much more active.} 19. f3 {[%emt 0:02:23]} Bxf1 {[%emt 0:01:25]} 20. fxg4 {[%emt 0:01:07] White is weak on the light squares} Bb5 $36 {[%emt 0:00:22][%mdl 2048] Black is really pushing.} 21. Qd2 {[%emt 0:01:05]} Qg5 {[%emt 0:00:44]} 22. Bh3 {[%emt 0:01:22]} Bd7 {[%emt 0:00:32]} 23. Qe2 {[%emt 0:02:46]} h5 {[%emt 0:00:42]} 24. Nc2 {[%emt 0:01:23]} hxg4 {[%emt 0:01:28]} 25. Bg2 {[%emt 0:00:27]} Rfe8 {[%emt 0:00:49]} 26. Qf2 {[%emt 0:02:00]} Re6 {[%emt 0:04:17]} 27. Qf4 {[%emt 0:02:17]} Qxf4 {[%emt 0:01:01]} 28. exf4 {[%emt 0:00:25]} Nb5 {[%emt 0:00:08][%cal Ba7b5,Bb5d4,Bd4b3][%mdl 32]} 29. Rge1 {[%emt 0:01:04]} Rae8 {[%emt 0:01:25]} 30. Ne3 {[%emt 0:01:10]} Bc6 {[%emt 0:07:32]} (30... Nxd4 31. Nxd5 Rc8 32. Red1 $17) 31. Nxg4 $2 {[%emt 0:01:26]} (31. Red1) 31... Nxd4 $19 {[%emt 0:00:13]} (31... Nxa3 32. Ne3 $19) 32. h3 {[%emt 0:04:44]} f6 {[%emt 0:00:51]} 33. h4 {[%emt 0:01:02]} Nb3 {[%emt 0:01:41]} 34. Rcd1 {[%emt 0:00:18]} d4 {[%emt 0:01:30]} 35. h5 {[%emt 0:00:19]} e3 {[%emt 0:00:50] [#] ...e2 is the strong threat.} 36. h6 {[%emt 0:00:20]} e2 {[%emt 0:00:37]} 37. Rd3 {[%emt 0:00:30]} Bb5 {[%emt 0:00:25]} 38. f5 {[%emt 0:00:59]} Bxd3 {[%emt 0:00:52]} 39. fxe6 {[%emt 0:00:05]} Bc4 {[%emt 0:00:09] ...d3 would now be deadly.} 40. hxg7 {[%emt 0:01:18]} Kxg7 {[%emt 0:00:08] And now ...d3 would win.} 41. Be4 {[%emt 0:00:46]} d3 {[%emt 0:01:17]} 42. Kg2 {[%emt 0:00:06]} d2 {[%emt 0:01:03] Black mates.} 43. Rh1 {[%emt 0:00:04]} Rh8 {[%emt 0:00:42]} (43... d1=B 44. Rh7+ (44. Bxb7 $2 Rxe6 45. Nf2 e1=Q $19) 44... Kf8 45. Rf7+ (45. Rxc7 $2 Rxe6 46. Rc8+ Ke7 $19) 45... Kg8 46. Nxf6+ Kh8 47. Rh7#) 44. Rxh8 {[%emt 0:00:43]} Kxh8 {[%emt 0:00:29]} (44... d1=N 45. Rh7+ Kg8 46. Nxf6+ Kf8 47. Rf7#) 45. e7 {[%emt 0:00:21]} Bf7 {[%emt 0:00:10]} ({Worse is} 45... d1=N 46. e8=Q+ (46. e8=R+ $2 Kg7 $19) 46... Kg7 47. Qg6+ (47. Bxb7 c6 $18) 47... Kf8 48. Qxf6+ (48. Bxb7 e1=Q $11) 48... Bf7 49. Bg6 (49. Bxb7 e1=Q $11) (49. Bd5 Ne3+ 50. Nxe3 e1=N+ 51. Kh1 Ke8 52. Bxf7+ Kf8 53. Nf5 Nf3 54. Qg7#) 49... e1=N+ 50. Kg1) 46. Nh6 {[%emt 0:00:44]} Be8 {[%emt 0:00:33] Black took control after the opening.   Weighted Error Value: White=0.66/Black=0.15 (very precise) .  Mistake:       	White=3     	---        Inaccurate:     	White=5     	---        OK:         	White=9     	Black=15     Best:        	White=1     	Black=1      Strong:       	---       	Black=1} ({Inferior is} 46... d1=B 47. Nxf7+ Kg7 48. e8=Q $11 (48. e8=R $2 {loses.} e1=Q $19)) 0-1

[Event "Israel-ch Youth U8-18 2024"]
[Site "Kfar Saba"]
[Date "2024.04.18"]
[Round "5.10"]
[White "Sason, Noam"]
[Black "Shilon Rahav, Eliran"]
[Result "1-0"]
[ECO "B30"]
[WhiteElo "1903"]
[BlackElo "2116"]
[Annotator "TA"]
[PlyCount "101"]
[EventDate "2024.04.10"]
[EventType "swiss"]
[EventCountry "ISR"]
[SourceTitle "playchess.com"]
[Source "ChessBase"]
[SourceQuality "1"]
[TimeControl "5400+30"]

{[%evp 9,101,45,56,34,29,33,44,40,40,0,6,0,27,24,27,0,0,-30,0,0,0,0,0,0,0,0,5,8,0,11,11,0,89,95,89,86,87,96,83,22,49,44,39,40,47,26,31,24,23,25,131,141,822,831,822,835,781,775,904,860,5089,5073,4184,4296,1664,4068,1495,1060,4133,1867,1530,1120,1022,995,1298,1279,6094,6087,29984,29985,29985,29977,29983,29984,29985,29986,29985,29986,29993,29994,29994,29995,29995,740]} 1. e4 {[%emt 0:00:03]} c5 {[%emt 0:00:07]} 2. Nc3 {[%emt 0:00:19]} e5 {[%emt 0:01:08]} 3. Nf3 {[%emt 0:01:02][%cal Bg1f3,Bf3d2,Bd2f1,Bf1e3,Be3d5][%mdl 32]} Nc6 {[%emt 0:00:06]} 4. Bc4 {[%emt 0:00:13]} g6 {[%emt 0:00:39]} 5. d3 {[%emt 0:00:58]} h6 $1 {[%emt 0:00:33]} 6. Nd2 {[%emt 0:01:36]} Bg7 {[%emt 0:00:39]} 7. Nf1 {[%emt 0:00:23]} Nge7 {[%emt 0:01:03]} 8. Ne3 {[%emt 0:00:16] White is slightly better.} O-O {[%emt 0:01:07]} 9. O-O {[%emt 0:00:34]} d6 {[%emt 0:01:43]} 10. Ned5 {[%emt 0:00:56]} a6 {[%emt 0:00:43]} 11. a4 {[%emt 0:01:40]} Kh7 {[%emt 0:03:21]} 12. f4 {[%emt 0:06:20][%cal Of4f5]} f5 {[%emt 0:02:33]} 13. Be3 {[%emt 0:04:11]} exf4 {[%emt 0:03:11]} 14. Nxf4 {[%emt 0:01:06]} g5 {[%emt 0:01:25]} 15. Ne6 {[%emt 0:03:03]} Bxe6 {[%emt 0:00:32]} 16. Bxe6 {[%emt 0:00:03]} f4 {[%emt 0:00:15]} 17. Bd2 {[%emt 0:02:17]} Nd4 {[%emt 0:02:09]} 18. Bg4 {[%emt 0:02:13]} b5 {[%emt 0:02:27]} 19. Nd5 {[%emt 0:02:34]} Nxd5 {[%emt 0:02:39]} 20. exd5 {[%emt 0:00:35]} Qf6 {[%emt 0:02:03]} (20... Nf5 $11) 21. c3 $16 {[%emt 0:02:37]} Nf5 {[%emt 0:02:18]} 22. axb5 {[%emt 0:01:01]} axb5 {[%emt 0:00:21]} 23. Rxa8 {[%emt 0:00:18]} Rxa8 {[%emt 0:00:02]} 24. Re1 {[%emt 0:00:14] Prevents Qe5.} (24. Qe2 $16) 24... Ne3 {[%emt 0:03:57]} 25. Bxe3 {[%emt 0:01:25]} fxe3 {[%emt 0:00:04]} 26. Rxe3 {[%emt 0:01:27]} b4 {[%emt 0:00:35]} 27. Re6 $36 {[%emt 0:14:06][%mdl 2048] White has good play.} Qf8 {[%emt 0:04:38]} 28. Qe1 {[%emt 0:05:36]} bxc3 {[%emt 1:04:12]} 29. bxc3 {[%emt 0:00:35]} Ra4 {[%emt 0:00:00]} (29... Be5 $11) 30. Bh5 {[%emt 0:03:04] Bg6+ is the strong threat.} Be5 $2 {[%emt 0:00:00][%mdl 8192] [#] This costs Black the game.} (30... Ra8 $16 31. g3 Kh8) 31. d4 $1 $18 {[%emt 0:06:03][%mdl 512]} cxd4 {[%emt 0:00:00][%cal Bc5d4,Bd4d3][%mdl 32] [#]} 32. Qb1+ $1 {[%emt 0:03:15]} d3 {[%emt 0:00:00]} 33. Bg6+ {[%emt 0:04:39]} Kg8 {[%emt 0:00:00]} 34. Re8 {[%emt 0:00:47]} ({Not} 34. Bxd3 Bxc3 35. Bg6 Ra8 $11 (35... Ra1 36. Qxa1 Bxa1 37. Re8 $11)) 34... Bxc3 {[%emt 0:00:00]} 35. Rxf8+ {[%emt 0:01:00]} Kxf8 {[%emt 0:00:00]} 36. Qf1+ {[%emt 0:02:57]} Rf4 {[%emt 0:00:00]} 37. Qxd3 {[%emt 0:00:11]} Bd4+ {[%emt 0:00:00]} 38. Kh1 {[%emt 0:00:07]} Be5 {[%emt 0:00:00]} 39. g3 {[%emt 0:00:39][%cal Bg2g3,Bg3g4][%mdl 32]} Rf6 {[%emt 0:00:00]} 40. Bf5 {[%emt 0:00:15]} Kg7 {[%emt 0:00:00]} 41. Qc2 {[%emt 0:00:38]} h5 {[%emt 0:00:00][%cal Bh6h5,Bh5h4][%mdl 32]} 42. Qc8 {[%emt 0:02:05]} h4 {[%emt 0:00:00]} 43. g4 {[%emt 0:01:09] White wants to mate with Be6.} Bf4 {[%emt 0:00:00]} 44. Be6 {[%emt 0:01:17] White mates.} Rf8 {[%emt 0:00:00]} 45. Qc3+ {[%emt 0:02:54]} Kg6 {[%emt 0:00:00]} 46. Bf5+ {[%emt 0:02:00]} Kf7 {[%emt 0:00:00]} 47. Qc7+ {[%emt 0:01:12]} Kf6 {[%emt 0:00:00]} 48. Qd7 {[%emt 0:01:27]} Rb8 {[%emt 0:00:00]} 49. Qe6+ {[%emt 0:00:27]} Kg7 {[%emt 0:00:00]} 50. Qe7+ {[%emt 0:00:40]} Kg8 {[%emt 0:00:00]} 51. Qh7+ {[%emt 0:00:21] Weighted Error Value: White=0.13 (very precise) /Black=0.23 (precise) .  Loses game:     	---       	Black=1      Mistake:       	White=1     	Black=2      Inaccurate:     	White=3     	Black=3      OK:         	White=10    	Black=11     Best:        	White=1     	---        Brilliant:      	White=1     	---} (51. Bg6 $142 Rb1+ 52. Bxb1 Be5 53. Bh7+ (53. Qxg5+ Kf8 54. Bf5 h3 55. Be6 Bd4 56. Qg8+ Ke7 57. Qf7+ Kd8 58. Qd7#) 53... Kh8 54. Qf7 h3 55. Qg8#) 1-0

[Event "Israel-ch Youth U8-18 2024"]
[Site "Kfar Saba"]
[Date "2024.04.18"]
[Round "5.11"]
[White "Zakin, Lior"]
[Black "Gurevich, Neria"]
[Result "0-1"]
[ECO "B45"]
[WhiteElo "1806"]
[BlackElo "1844"]
[Annotator "NA RC COMBH"]
[PlyCount "76"]
[EventDate "2024.04.10"]
[EventType "swiss"]
[EventCountry "ISR"]
[SourceTitle "playchess.com"]
[Source "ChessBase"]
[SourceQuality "1"]
[TimeControl "5400+30"]

1. e4 {[%emt 0:00:01]} c5 {[%emt 0:00:07]} 2. Nf3 {[%emt 0:00:05]} e6 {[%emt 0:00:08]} 3. d4 {[%emt 0:00:03]} cxd4 {[%emt 0:00:09]} 4. Nxd4 {[%emt 0:00:02]} Nf6 {[%emt 0:00:10]} 5. Nc3 {[%emt 0:00:05]} Nc6 {[%emt 0:00:13]} 6. Bf4 {[%emt 0:00:06]} Bb4 {[%emt 0:00:35]} 7. Ndb5 {[%emt 0:00:16]} e5 {[%emt 0:00:46]} 8. Bg5 {[%emt 0:03:47]} O-O {[%emt 0:01:15]} 9. a3 {[%emt 0:07:30]} Be7 {[%emt 0:00:49]} 10. Nd6 {[%emt 0:01:53]} Nd4 {[%emt 0:03:09]} 11. Bxf6 {[%emt 0:05:22]} Bxf6 {[%emt 0:02:10]} 12. Nd5 {[%emt 0:06:02]} Be7 {[%emt 0:11:05]} 13. Nxc8 {[%emt 0:00:29]} Rxc8 {[%emt 0:00:11]} 14. c3 {[%emt 0:02:21]} Ne6 {[%emt 0:02:26]} 15. Be2 {[%emt 0:03:45]} Bc5 {[%emt 0:06:55]} 16. O-O {[%emt 0:06:38]} Qg5 {[%emt 0:03:03]} 17. Rc1 {[%emt 0:08:35]} Nf4 {[%emt 0:11:54]} 18. Nxf4 {[%emt 0:01:09]} Qxf4 {[%emt 0:00:09]} 19. Bf3 {[%emt 0:01:24]} Rfd8 {[%emt 0:07:53]} 20. b4 {[%emt 0:02:16]} Bb6 {[%emt 0:00:12]} 21. Qd5 {[%emt 0:01:51]} Rc6 {[%emt 0:01:10]} 22. Qd3 {[%emt 0:08:32]} Rf6 {[%emt 0:02:22]} 23. a4 {[%emt 0:05:23]} a6 {[%emt 0:00:09]} 24. a5 {[%emt 0:05:19]} Ba7 {[%emt 0:00:07]} 25. Rcd1 {[%emt 0:00:49]} g5 {[%emt 0:01:14]} 26. Qe2 {[%emt 0:01:48]} Rg6 {[%emt 0:13:19]} 27. g3 {[%emt 0:03:17]} g4 {[%emt 0:00:10]} 28. Bg2 {[%emt 0:00:40]} Qg5 {[%emt 0:00:13]} 29. Kh1 {[%emt 0:25:32]} Rh6 {[%emt 0:02:05]} 30. Rd5 {[%emt 0:00:00]} Rc8 {[%emt 0:08:01]} 31. Rxd7 {[%emt 0:00:00]} Rxc3 {[%emt 0:01:47]} 32. Rfd1 {[%emt 0:00:00]} Rxg3 {[%emt 0:00:49]} 33. Qc4 {[%emt 0:02:00]} Rxh2+ {[%emt 0:00:57]} 34. Kxh2 {[%emt 0:00:00]} Qh4+ {[%emt 0:00:08]} 35. Kg1 {[%emt 0:00:00]} Rxg2+ {[%emt 0:00:06]} 36. Kxg2 {[%emt 0:00:00]} Qxf2+ {[%emt 0:00:03]} 37. Kh1 {[%emt 0:00:00]} Qf3+ {[%emt 0:00:03]} 38. Kh2 {[%emt 0:00:00]} Qh3# {[%emt 0:00:03]} 0-1

[Event "Israel-ch Youth U8-18 2024"]
[Site "Kfar Saba"]
[Date "2024.04.18"]
[Round "5.13"]
[White "Ronin, Ilan"]
[Black "Roth, Elai"]
[Result "1/2-1/2"]
[ECO "B21"]
[WhiteElo "1555"]
[BlackElo "1537"]
[Annotator "NA RC COMBH"]
[PlyCount "61"]
[EventDate "2024.04.10"]
[EventType "swiss"]
[EventCountry "ISR"]
[SourceTitle "playchess.com"]
[Source "ChessBase"]
[SourceQuality "1"]
[TimeControl "5400+30"]

1. e4 {[%emt 0:00:12]} c5 {[%emt 0:00:01]} 2. d4 {[%emt 0:00:18]} cxd4 {[%emt 0:00:10]} 3. c3 {[%emt 0:00:10]} dxc3 {[%emt 0:00:11]} 4. Nxc3 {[%emt 0:00:07]} e6 {[%emt 0:00:12]} 5. Nf3 {[%emt 0:00:13]} Nc6 {[%emt 0:00:50]} 6. Bf4 {[%emt 0:00:45]} Bb4 {[%emt 0:00:36]} 7. Be2 {[%emt 0:00:35]} Nf6 {[%emt 0:00:32]} 8. Qd3 {[%emt 0:01:31]} d5 {[%emt 0:02:38]} 9. exd5 {[%emt 0:00:44]} Nxd5 {[%emt 0:02:29]} 10. Bd2 {[%emt 0:01:11]} O-O {[%emt 0:02:44]} 11. O-O {[%emt 0:00:59]} Nxc3 {[%emt 0:00:59]} 12. Bxc3 {[%emt 0:00:34]} Qxd3 {[%emt 0:03:48]} 13. Bxd3 {[%emt 0:00:17]} Bxc3 {[%emt 0:00:41]} 14. bxc3 {[%emt 0:00:11]} b6 {[%emt 0:04:05]} 15. Be4 {[%emt 0:02:02]} Bb7 {[%emt 0:00:31]} 16. Rad1 {[%emt 0:00:32]} Rfd8 {[%emt 0:03:11]} 17. Nd4 {[%emt 0:01:13]} Nxd4 {[%emt 0:05:39]} 18. Rxd4 {[%emt 0:02:39]} Rxd4 {[%emt 0:02:09]} 19. Bxb7 {[%emt 0:00:13]} Rb8 {[%emt 0:00:19]} 20. cxd4 {[%emt 0:00:07]} Rxb7 {[%emt 0:00:11]} 21. Rc1 {[%emt 0:00:15]} g6 {[%emt 0:00:44]} 22. Kf1 {[%emt 1:26:42]} Kg7 23. Ke2 Kf6 24. Kf3 Rd7 25. Ke4 Ke7 26. Ke3 Kf6 27. Ke4 Ke7 28. Ke3 Kf6 29. Ke4 Ke7 30. Ke3 Kf6 31. Ke4 {[%emt 0:00:00]} 1/2-1/2

[Event "Israel-ch Youth U8-18 2024"]
[Site "Kfar Saba"]
[Date "2024.04.18"]
[Round "5.14"]
[White "Eshkol, Idan"]
[Black "Regev, Berry"]
[Result "1-0"]
[ECO "B76"]
[WhiteElo "1518"]
[BlackElo "1525"]
[Annotator "NA RC COMBH"]
[PlyCount "69"]
[EventDate "2024.04.10"]
[EventType "swiss"]
[EventCountry "ISR"]
[SourceTitle "playchess.com"]
[Source "ChessBase"]
[SourceQuality "1"]
[TimeControl "5400+30"]

1. e4 {[%emt 0:00:03]} c5 {[%emt 0:00:06]} 2. Nf3 {[%emt 0:00:09]} Nc6 {[%emt 0:00:13]} 3. Nc3 {[%emt 0:00:06]} g6 {[%emt 0:00:27]} 4. d4 {[%emt 0:00:15]} cxd4 {[%emt 0:00:07]} 5. Nxd4 {[%emt 0:00:03]} Bg7 {[%emt 0:00:12]} 6. Be3 {[%emt 0:00:51]} Nf6 {[%emt 0:00:52]} 7. f3 {[%emt 0:02:11]} O-O {[%emt 0:00:28]} 8. Qd2 {[%emt 0:00:48]} d6 {[%emt 0:00:26]} 9. Bb5 {[%emt 0:02:46]} Bd7 {[%emt 0:01:30]} 10. Bxc6 {[%emt 0:00:29]} Bxc6 {[%emt 0:00:12]} 11. Bh6 {[%emt 0:00:18]} Rc8 {[%emt 0:01:40]} 12. h4 {[%emt 0:00:20]} Qb6 {[%emt 0:02:51]} 13. O-O-O {[%emt 0:03:31]} Rfd8 {[%emt 0:03:45]} 14. h5 {[%emt 0:00:21]} Bxh6 {[%emt 0:09:20]} 15. Qxh6 {[%emt 0:00:21]} e5 {[%emt 0:06:23]} 16. Nf5 {[%emt 0:02:12]} gxf5 {[%emt 0:03:27]} 17. Qxf6 {[%emt 0:00:19]} Qe3+ {[%emt 0:00:58]} 18. Rd2 {[%emt 0:00:30]} h6 {[%emt 0:03:48]} 19. Qxf5 {[%emt 0:05:38]} Kg7 {[%emt 0:05:29]} 20. Qg4+ {[%emt 0:01:30]} Kh7 {[%emt 0:00:49]} 21. Qh4 {[%emt 0:02:22]} Qg5 {[%emt 0:03:50]} 22. Qxg5 {[%emt 0:01:20]} hxg5 {[%emt 0:00:08]} 23. Rhd1 {[%emt 0:00:40]} Kh6 {[%emt 0:01:26]} 24. g4 {[%emt 0:00:29]} f5 {[%emt 0:00:32]} 25. Rxd6+ {[%emt 0:00:26]} Rxd6 {[%emt 0:00:32]} 26. Rxd6+ {[%emt 0:00:08]} Kg7 {[%emt 0:53:59]} 27. Rg6+ {[%emt 0:00:39]} Kh7 {[%emt 0:00:00]} 28. Rxg5 {[%emt 0:01:18]} fxg4 {[%emt 0:00:00]} 29. fxg4 {[%emt 0:00:30]} Rg8 {[%emt 0:00:00]} 30. Rxg8 {[%emt 0:00:36]} Kxg8 {[%emt 0:00:00]} 31. Nd5 {[%emt 0:00:08]} Kf7 {[%emt 0:00:00]} 32. Kd2 {[%emt 0:00:15]} Bd7 {[%emt 0:00:00]} 33. g5 {[%emt 0:01:17]} Bg4 {[%emt 0:00:00]} 34. Nf6 {[%emt 0:00:25]} b5 {[%emt 0:00:00]} 35. Nxg4 {[%emt 0:00:15]} 1-0